bitfinex/quotes_BTCUSD_20250620
["timestamp","ask_amount","ask_price","bid_price","bid_amount"]
[1750382084892,0.343,104640.0,104630.0,0.70489851]
[1750382085137,0.343,104640.0,104630.0,0.80017744]
[1750382087261,0.343,104640.0,104630.0,0.80009744]
[1750382088215,0.003,104640.0,104630.0,0.80009744]
[1750382089832,0.003,104640.0,104630.0,0.81463829]
[1750382090931,0.003,104640.0,104630.0,1.14463569]
[1750382092524,0.002,104640.0,104630.0,1.14463569]
[1750382093229,0.2189851,104660.0,104650.0,0.21977911]
[1750382093471,0.2189851,104660.0,104650.0,0.79953544]
[1750382094438,0.2209851,104660.0,104650.0,0.79953544]
[1750382094699,0.2249851,104660.0,104650.0,0.79953544]
[1750382097469,0.3649851,104660.0,104650.0,0.79953544]
[1750382097708,0.3629851,104660.0,104650.0,0.79953544]
[1750382098152,0.3589851,104660.0,104650.0,0.79953544]
[1750382099769,0.3589851,104660.0,104650.0,0.50989804]
[1750382099990,0.3589851,104660.0,104650.0,0.79953544]
[1750382100674,0.5589851,104660.0,104650.0,0.79953544]
[1750382100898,0.3589851,104660.0,104650.0,0.79953544]
[1750382102026,0.5589851,104660.0,104650.0,0.50989804]
[1750382102259,0.6486225,104660.0,104650.0,0.50985804]
[1750382102514,0.65817651,104660.0,104650.0,0.50985804]
[1750382102747,0.65817651,104660.0,104650.0,0.49145804]
[1750382102966,0.6486225,104660.0,104650.0,0.49145804]
[1750382103193,0.65817642,104660.0,104650.0,0.49145804]
[1750382103631,0.6486225,104660.0,104650.0,0.49145804]
[1750382104082,0.3589851,104660.0,104650.0,0.80009544]
[1750382104975,0.3589851,104660.0,104650.0,0.51045804]
[1750382105183,0.3589851,104660.0,104650.0,0.80009544]
[1750382106656,0.6581766,104660.0,104650.0,0.23907911]
[1750382106884,5.91672682,104660.0,104650.0,0.36614409]
[1750382107114,5.91672682,104660.0,104650.0,0.36614418]
[1750382107335,5.91672682,104660.0,104650.0,0.38525467]
[1750382107551,5.91672682,104660.0,104650.0,0.39480978]
[1750382110062,5.91672682,104660.0,104650.0,0.38525467]
[1750382110332,5.90717272,104660.0,104650.0,0.37569947]
[1750382110792,5.90717272,104660.0,104650.0,0.38525458]
[1750382111014,5.61753532,104660.0,104650.0,0.38525458]
[1750382113489,5.90717272,104660.0,104650.0,0.36614418]
[1750382113710,5.90717272,104660.0,104650.0,0.3565888]
[1750382113929,5.90717272,104660.0,104650.0,0.37569938]
[1750382114434,5.90717272,104660.0,104650.0,0.36614418]
[1750382115547,5.90717272,104660.0,104650.0,0.37569947]
[1750382116426,5.90717272,104660.0,104650.0,0.38525458]
[1750382116682,5.90717272,104660.0,104650.0,0.3948096]
[1750382117135,5.62709006,104660.0,104650.0,0.3948096]
[1750382117605,5.60789006,104660.0,104650.0,0.3948096]
[1750382117824,5.60668006,104660.0,104650.0,0.22933458]
[1750382118045,5.91592746,104660.0,104650.0,0.37577947]
[1750382118909,5.90637317,104660.0,104650.0,0.37577947]
[1750382122941,5.90637317,104660.0,104650.0,0.36622418]
[1750382123818,5.89681861,104660.0,104650.0,0.36622418]
[1750382124035,5.89681861,104660.0,104650.0,0.3566688]
[1750382124243,5.88726387,104660.0,104650.0,0.3566688]
[1750382124472,5.30798907,104660.0,104650.0,0.36622418]
[1750382124722,5.88726387,104660.0,104650.0,0.36622418]
[1750382125607,5.86886387,104660.0,104650.0,0.36622418]
[1750382125818,5.86886387,104660.0,104650.0,0.37577947]
[1750382126227,5.58878103,104660.0,104650.0,0.39488978]
[1750382126472,5.56998103,104660.0,104650.0,0.39488978]
[1750382126697,5.58848103,104660.0,104650.0,0.36622418]
[1750382126968,5.87811843,104660.0,104650.0,0.3566688]
[1750382127387,5.87811843,104660.0,104650.0,0.36622409]
[1750382127599,5.87811843,104660.0,104650.0,0.37577929]
[1750382128251,5.85961843,104660.0,104650.0,0.37577929]
[1750382128458,5.85961843,104660.0,104650.0,0.3853344]
[1750382130030,5.85961843,104660.0,104650.0,0.37577929]
[1750382130861,5.85961843,104660.0,104650.0,0.3853344]
[1750382131069,5.85961843,104660.0,104650.0,0.3566688]
[1750382131287,5.87731843,104660.0,104650.0,0.36622427]
[1750382131503,5.89701843,104660.0,104650.0,0.36622427]
[1750382131973,5.87731843,104660.0,104650.0,0.37577956]
[1750382132608,5.87731843,104660.0,104650.0,0.36622427]
[1750382133694,5.89601843,104660.0,104650.0,0.36622427]
[1750382133912,5.89601843,104660.0,104650.0,0.37577965]
[1750382134758,5.91893272,104660.0,104650.0,0.37577965]
[1750382136953,5.90023272,104660.0,104650.0,0.37577965]
[1750382137370,5.88253272,104660.0,104650.0,0.39489014]
[1750382138001,5.30325792,104660.0,104650.0,0.39489014]
[1750382138210,5.88253272,104660.0,104650.0,0.39489014]
[1750382138415,5.88253272,104660.0,104650.0,0.39488968]
[1750382138647,5.90164166,104660.0,104650.0,0.39488923]
[1750382138836,5.9111964,104660.0,104650.0,0.38533421]
[1750382139047,5.9111964,104660.0,104650.0,0.3757791]
[1750382139258,5.89208755,104660.0,104650.0,0.35666889]
[1750382139471,5.8825329,104660.0,104650.0,0.35666889]
[1750382139923,5.87297816,104660.0,104650.0,0.36622446]
[1750382140368,5.49107877,104660.0,104650.0,0.36622446]
[1750382142245,5.51087909,104660.0,104650.0,0.36622446]
[1750382143514,5.85087909,104660.0,104650.0,0.36622446]
[1750382144177,5.85081909,104660.0,104650.0,0.34711323]
[1750382144665,0.54066861,104650.0,104640.0,0.11394494]
[1750382144884,5.56995501,104650.0,104640.0,0.35660806]
[1750382145101,5.56995501,104650.0,104640.0,0.16547657]
[1750382145313,5.56995501,104650.0,104640.0,0.15592]
[1750382145743,5.56995501,104650.0,104640.0,0.34705149]
[1750382145952,5.55095501,104650.0,104640.0,0.35660806]
[1750382146594,5.55095501,104650.0,104640.0,0.16547657]
[1750382147010,5.55095501,104650.0,104640.0,0.36060806]
[1750382147456,5.55095501,104650.0,104640.0,0.35860806]
[1750382147676,5.55295501,104650.0,104640.0,0.35860806]
[1750382147900,5.55295501,104650.0,104640.0,0.35660806]
[1750382148380,5.56351048,104650.0,104640.0,0.35660806]
[1750382148620,5.38080218,104650.0,104640.0,0.42337649]
[1750382148841,5.38080155,104650.0,104640.0,0.42450649]
[1750382149063,5.39035693,104650.0,104640.0,0.42450649]
[1750382149295,5.39035702,104650.0,104640.0,0.42450649]
[1750382149519,5.38080155,104650.0,104640.0,0.42450649]
[1750382149742,5.37124635,104650.0,104640.0,0.42450649]
[1750382149964,5.36169124,104650.0,104640.0,0.42450649]
[1750382150180,5.38080155,104650.0,104640.0,0.42450649]
[1750382150412,5.38080146,104650.0,104640.0,0.42450649]
[1750382150860,5.08160886,104650.0,104640.0,0.42450649]
[1750382151077,5.09116406,104650.0,104640.0,0.42450649]
[1750382151774,5.08160886,104650.0,104640.0,0.42450649]
[1750382152003,5.09116406,104650.0,104640.0,0.42450649]
[1750382152485,5.08160886,104650.0,104640.0,0.42450649]
[1750382152704,0.36210986,104650.0,104640.0,0.42450649]
[1750382153139,0.37166506,104650.0,104640.0,0.42450649]
[1750382153572,0.203,104650.0,104640.0,0.71414389]
[1750382154012,0.003,104650.0,104640.0,0.71414389]
[1750382154669,0.01255484,104650.0,104640.0,0.71414389]
[1750382155140,0.01255484,104650.0,104640.0,0.42450649]
[1750382155141,0.003,104650.0,104640.0,0.42450649]
[1750382155357,0.003,104650.0,104640.0,0.71414389]
[1750382155991,0.543,104650.0,104640.0,0.71414389]
[1750382156230,0.343,104650.0,104640.0,0.71414389]
[1750382156657,0.543,104650.0,104640.0,0.71414389]
[1750382156882,0.343,104650.0,104640.0,0.71414389]
[1750382157100,0.543,104650.0,104640.0,0.80942282]
[1750382157810,0.343,104650.0,104640.0,0.80942282]
[1750382161441,0.543,104650.0,104640.0,0.80942282]
[1750382161632,0.343,104650.0,104640.0,0.80942282]
[1750382163412,0.343,104650.0,104640.0,0.51978542]
[1750382163622,0.343,104650.0,104640.0,0.80942282]
[1750382164324,0.003,104650.0,104640.0,0.80942282]
[1750382164538,0.203,104650.0,104640.0,0.80942282]
[1750382167378,0.003,104650.0,104640.0,0.80942282]
[1750382168302,0.003,104650.0,104640.0,1.09906022]
[1750382168734,0.003,104650.0,104640.0,0.80942282]
[1750382169608,0.003,104650.0,104640.0,0.51978542]
[1750382169821,0.003,104650.0,104640.0,0.80942282]
[1750382170247,0.003,104650.0,104640.0,1.09906022]
[1750382171565,0.003,104650.0,104640.0,0.80942282]
[1750382173361,0.003,104650.0,104640.0,1.09906022]
[1750382173521,0.003,104650.0,104640.0,1.11360107]
[1750382173954,0.001,104650.0,104640.0,1.11360107]
[1750382174621,0.01980032,104660.0,104650.0,0.25917911]
[1750382174837,0.35980032,104660.0,104650.0,0.64522544]
[1750382175054,0.34,104660.0,104650.0,0.64522544]
[1750382175496,0.34,104660.0,104650.0,0.35445804]
[1750382175716,0.6296374,104660.0,104650.0,0.49053804]
[1750382175991,0.64019141,104660.0,104650.0,0.49166804]
[1750382176654,0.64019141,104660.0,104650.0,0.21977911]
[1750382176655,0.67840017,104660.0,104650.0,0.21977911]
[1750382176877,0.67961017,104660.0,104650.0,0.37565911]
[1750382177100,0.40594983,104660.0,104650.0,0.37565911]
[1750382177316,0.68604143,104660.0,104650.0,0.37565911]
[1750382178182,0.69559581,104660.0,104650.0,0.37565911]
[1750382178416,0.68604143,104660.0,104650.0,0.37565911]
[1750382178631,0.69559581,104660.0,104650.0,0.37565911]
[1750382178839,0.69559581,104660.0,104650.0,0.21977911]
[1750382178840,0.71399581,104660.0,104650.0,0.21977911]
[1750382179062,5.76205142,104660.0,104650.0,0.37565911]
[1750382179283,5.66350899,104660.0,104650.0,0.36610409]
[1750382179498,5.66350972,104660.0,104650.0,0.37565929]
[1750382179750,5.66350972,104660.0,104650.0,0.3852144]
[1750382179964,5.65395552,104660.0,104650.0,0.3852144]
[1750382182371,5.65395552,104660.0,104650.0,0.2293344]
[1750382182585,5.64440114,104660.0,104650.0,0.36610409]
[1750382183239,5.64440114,104660.0,104650.0,0.37565929]
[1750382183891,5.64440114,104660.0,104650.0,0.3852144]
[1750382185198,5.44375143,104660.0,104650.0,0.3852144]
[1750382185401,5.42515098,104660.0,104650.0,0.39476942]
[1750382185620,5.40675098,104660.0,104650.0,0.39476942]
[1750382186055,5.40554098,104660.0,104650.0,0.39476942]
[1750382186297,5.42464955,104660.0,104650.0,0.39476942]
[1750382186936,5.62529917,104660.0,104650.0,0.3852144]
[1750382187618,5.65485516,104660.0,104650.0,0.3852144]
[1750382189694,5.44465098,104660.0,104650.0,0.39476942]
[1750382189905,5.40554098,104660.0,104650.0,0.39476942]
[1750382190596,5.41630554,104660.0,104650.0,0.39476942]
[1750382190992,5.41509554,104660.0,104650.0,0.41326942]
[1750382191413,5.41509554,104660.0,104650.0,0.39476942]
[1750382191794,5.41630554,104660.0,104650.0,0.39476942]
[1750382192415,5.42586019,104660.0,104650.0,0.39476942]
[1750382193627,5.42465019,104660.0,104650.0,0.39476942]
[1750382193848,5.41509554,104660.0,104650.0,0.41346942]
[1750382194033,5.41509554,104660.0,104650.0,0.39476942]
[1750382195448,5.41630554,104660.0,104650.0,0.39476942]
[1750382196029,5.60740051,104660.0,104650.0,0.3852144]
[1750382196672,5.40675098,104660.0,104650.0,0.3852144]
[1750382196873,5.41630554,104660.0,104650.0,0.23888942]
[1750382197075,5.41630554,104660.0,104650.0,0.39472942]
[1750382197280,5.4163049,104660.0,104650.0,0.39472942]
[1750382197692,5.4150949,104660.0,104650.0,0.41362942]
[1750382199065,5.42464946,104660.0,104650.0,0.41362942]
[1750382199265,5.42464946,104660.0,104650.0,0.39472942]
[1750382201385,5.42464946,104660.0,104650.0,0.41462942]
[1750382202362,5.62529908,104660.0,104650.0,0.41462942]
[1750382202579,5.62529981,104660.0,104650.0,0.39472942]
[1750382206531,5.90538292,104660.0,104650.0,0.19111323]
[1750382206754,5.89695854,104660.0,104650.0,0.36606408]
[1750382207192,5.60732114,104660.0,104650.0,0.36606408]
[1750382207406,5.89695854,104660.0,104650.0,0.36606408]
[1750382207621,5.60732114,104660.0,104650.0,0.38517439]
[1750382207838,5.60619114,104660.0,104650.0,0.38517439]
[1750382208270,5.40554107,104660.0,104650.0,0.41322941]
[1750382208483,5.42846315,104660.0,104650.0,0.41322941]
[1750382208698,5.61955812,104660.0,104650.0,0.41322941]
[1750382208911,5.62911286,104660.0,104650.0,0.38456408]
[1750382209149,5.62911286,104660.0,104650.0,0.36606408]
[1750382209367,5.63024286,104660.0,104650.0,0.36606408]
[1750382209586,5.63024286,104660.0,104650.0,0.37561937]
[1750382209802,5.63024286,104660.0,104650.0,0.38517457]
[1750382210887,5.62911286,104660.0,104650.0,0.39472968]
[1750382211120,5.40554043,104660.0,104650.0,0.43233923]
[1750382211337,5.11590303,104660.0,104650.0,0.43233923]
[1750382211589,5.10634892,104660.0,104650.0,0.43233923]
[1750382211797,5.11590321,104660.0,104650.0,0.43233923]
[1750382212014,5.10634892,104660.0,104650.0,0.43233923]
[1750382212662,5.41509499,104660.0,104650.0,0.43233923]
[1750382212901,5.4150949,104660.0,104650.0,0.43233923]
[1750382213537,5.42464946,104660.0,104650.0,0.43233923]
[1750382213755,5.4150949,104660.0,104650.0,0.43233923]
[1750382214009,5.40554052,104660.0,104650.0,0.43233923]
[1750382214498,5.41509481,104660.0,104650.0,0.43233923]
[1750382215500,5.40554052,104660.0,104650.0,0.43233923]
[1750382216549,5.08464946,104660.0,104650.0,0.43233923]
[1750382217096,5.08464946,104660.0,104650.0,0.42278412]
[1750382217374,5.08464946,104660.0,104650.0,0.42157412]
[1750382217636,5.0750949,104660.0,104650.0,0.42157412]
[1750382218421,5.08464946,104660.0,104650.0,0.42157412]
[1750382220216,4.79501206,104660.0,104650.0,0.42157412]
[1750382220442,5.08464946,104660.0,104650.0,0.42157412]
[1750382220943,5.0750949,104660.0,104650.0,0.42157412]
[1750382221404,5.07509481,104660.0,104650.0,0.42278412]
[1750382221629,5.08464937,104660.0,104650.0,0.42278412]
[1750382222311,5.08464928,104660.0,104650.0,0.42278412]
[1750382222549,5.07509481,104660.0,104650.0,0.42278412]
[1750382222830,5.05598632,104660.0,104650.0,0.42278412]
[1750382223066,0.33648732,104660.0,104650.0,0.42278412]
[1750382223762,0.26595868,104660.0,104650.0,0.42278412]
[1750382223981,0.35559608,104660.0,104650.0,0.42278412]
[1750382224199,0.35559599,104660.0,104650.0,0.42278412]
[1750382225072,0.65478795,104660.0,104650.0,0.42278412]
[1750382225292,0.36515055,104660.0,104650.0,0.42278412]
[1750382225508,0.56580017,104660.0,104650.0,0.42278421]
[1750382225725,0.0286656,104650.0,104640.0,0.24664417]
[1750382225920,5.037802,104650.0,104640.0,0.4120001]
[1750382226169,5.2384708,104650.0,104640.0,0.4120001]
[1750382226817,5.04735757,104650.0,104640.0,0.4132101]
[1750382227055,5.04735757,104650.0,104640.0,0.2574101]
[1750382227261,5.38735757,104650.0,104640.0,0.4120001]
[1750382227910,5.377802,104650.0,104640.0,0.4120001]
[1750382229170,5.37780191,104650.0,104640.0,0.4120001]
[1750382229405,5.06905393,104650.0,104640.0,0.2562001]
[1750382229645,0.34955484,104650.0,104640.0,0.4131501]
[1750382229855,0.65830255,104650.0,104640.0,0.4131501]
[1750382230101,0.65830255,104650.0,104640.0,0.4120001]
[1750382230333,0.66785802,104650.0,104640.0,0.4131501]
[1750382231189,0.66785793,104650.0,104640.0,0.4131501]
[1750382232677,0.66785793,104650.0,104640.0,0.3931001]
[1750382234402,0.6774134,104650.0,104640.0,0.3931001]
[1750382234835,0.65830255,104650.0,104640.0,0.3931001]
[1750382235049,0.64874726,104650.0,104640.0,0.4130501]
[1750382235269,0.65830246,104650.0,104640.0,0.4130501]
[1750382235703,0.66785793,104650.0,104640.0,0.4119001]
[1750382236126,0.65830246,104650.0,104640.0,0.4119001]
[1750382236321,0.66785784,104650.0,104640.0,0.4119001]
[1750382236610,0.65830246,104650.0,104640.0,0.4119001]
[1750382237507,0.65830246,104650.0,104640.0,0.4130501]
[1750382238896,0.65830237,104650.0,104640.0,0.4130501]
[1750382239352,0.66785766,104650.0,104640.0,0.4130501]
[1750382241022,0.67741313,104650.0,104640.0,0.4130501]
[1750382241256,0.66785766,104650.0,104640.0,0.4130501]
[1750382241480,0.67741304,104650.0,104640.0,0.4130501]
[1750382241673,0.38777564,104650.0,104640.0,0.4130501]
[1750382241929,0.67741304,104650.0,104640.0,0.4130501]
[1750382242162,0.67741304,104650.0,104640.0,0.2572501]
[1750382242398,0.67741304,104650.0,104640.0,0.36604417]
[1750382242399,0.85897207,104650.0,104640.0,0.36604417]
[1750382242624,0.65830318,104650.0,104640.0,0.37560019]
[1750382242846,0.66785865,104650.0,104640.0,0.40345612]
[1750382244683,5.39691322,104650.0,104640.0,0.40345612]
[1750382245236,5.58802645,104650.0,104640.0,0.40345612]
[1750382245633,5.39691322,104650.0,104640.0,0.40345612]
[1750382246914,5.38735765,104650.0,104640.0,0.40345612]
[1750382247355,5.56891577,104650.0,104640.0,0.36604427]
[1750382247593,5.57006577,104650.0,104640.0,0.36604427]
[1750382247806,5.57006577,104650.0,104640.0,0.37560047]
[1750382248024,5.57006577,104650.0,104640.0,0.19113149]
[1750382248025,5.66503403,104650.0,104640.0,0.19113149]
[1750382248239,5.68413403,104650.0,104640.0,0.34693149]
[1750382248455,5.68413403,104650.0,104640.0,0.35648806]
[1750382248664,5.68413403,104650.0,104640.0,0.36604454]
[1750382249749,5.67457856,104650.0,104640.0,0.35648806]
[1750382251284,5.65432856,104650.0,104640.0,0.20068806]
[1750382251529,0.35911223,104640.0,104630.0,0.2567202]
[1750382251739,0.64874963,104640.0,104630.0,0.4136702]
[1750382252390,5.36824863,104640.0,104630.0,0.4136702]
[1750382252620,5.37780483,104640.0,104630.0,0.4136702]
[1750382252835,5.08816743,104640.0,104630.0,0.2578702]
[1750382253049,5.38736122,104640.0,104630.0,0.41767093]
[1750382253474,5.58804919,104640.0,104630.0,0.26187093]
[1750382253698,5.58804919,104640.0,104630.0,0.43681093]
[1750382253914,5.58804983,104640.0,104630.0,0.25116409]
[1750382254130,5.57849363,104640.0,104630.0,0.38776409]
[1750382254345,5.57849363,104640.0,104630.0,0.23196409]
[1750382254561,5.57849363,104640.0,104630.0,0.38776409]
[1750382255437,5.37780557,104640.0,104630.0,0.39732093]
[1750382255640,5.07861169,104640.0,104630.0,0.39732093]
[1750382255914,5.36824909,104640.0,104630.0,0.41677093]
[1750382257775,5.36824909,104640.0,104630.0,0.39732093]
[1750382258419,5.56893706,104640.0,104630.0,0.39732093]
[1750382258630,5.57849363,104640.0,104630.0,0.38776409]
[1750382260839,5.06905493,104640.0,104630.0,0.41581093]
[1750382261057,0.34955584,104640.0,104630.0,0.41581093]
[1750382262558,0.35911177,104640.0,104630.0,0.41581093]
[1750382263231,0.34955584,104640.0,104630.0,0.41581093]
[1750382263438,0.34,104640.0,104630.0,0.41581093]
[1750382263654,0.34955575,104640.0,104630.0,0.41581093]
[1750382263869,0.35911168,104640.0,104630.0,0.41581093]
[1750382264347,0.34955575,104640.0,104630.0,0.41581093]
[1750382264988,0.35911168,104640.0,104630.0,0.41581093]
[1750382265450,0.65830519,104640.0,104630.0,0.41581093]
[1750382266102,0.34,104640.0,104630.0,0.41581093]
[1750382266777,0.34,104640.0,104630.0,0.70544833]
[1750382267018,0.54,104640.0,104630.0,0.70544833]
[1750382267245,0.34,104640.0,104630.0,0.70544833]
[1750382268992,5.1129033,104660.0,104650.0,0.21977911]
[1750382269213,5.1129033,104660.0,104650.0,0.41322911]
[1750382269214,5.11669355,104660.0,104650.0,0.41322911]
[1750382269430,4.77669355,104660.0,104650.0,0.41322911]
[1750382269658,4.75379482,104660.0,104650.0,0.41322911]
[1750382269880,5.09379482,104660.0,104650.0,0.41322911]
[1750382270096,0.03429582,104660.0,104650.0,0.41322911]
[1750382270321,0.23529582,104660.0,104650.0,0.79814544]
[1750382270537,0.341,104660.0,104650.0,0.79814544]
[1750382271046,0.543,104660.0,104650.0,0.50850804]
[1750382271484,0.24011023,104660.0,104650.0,0.50850804]
[1750382279179,0.04011023,104660.0,104650.0,0.50850804]
[1750382281865,0.04966415,104660.0,104650.0,0.50850804]
[1750382282395,0.04011023,104660.0,104650.0,0.50850804]
[1750382282613,0.04966415,104660.0,104650.0,0.50850804]
[1750382283254,0.04011023,104660.0,104650.0,0.50850804]
[1750382283497,0.04966415,104660.0,104650.0,0.50850804]
[1750382283706,0.04011023,104660.0,104650.0,0.50850804]
[1750382284268,0.04966415,104660.0,104650.0,0.50850804]
[1750382284483,0.05921835,104660.0,104650.0,0.50850804]
[1750382284694,0.04966415,104660.0,104650.0,0.50850804]
[1750382284907,0.05921825,104660.0,104650.0,0.50850804]
[1750382285119,0.04966415,104660.0,104650.0,0.50850804]
[1750382285907,0.05921825,104660.0,104650.0,0.50850804]
[1750382286200,0.05921816,104660.0,104650.0,0.50850804]
[1750382286470,0.04011023,104660.0,104650.0,0.50850804]
[1750382292453,0.04011023,104660.0,104650.0,0.41327911]
[1750382292915,0.40202543,104660.0,104650.0,0.41327911]
[1750382295153,0.77349473,104660.0,104650.0,0.21977911]
[1750382295368,5.72118925,104660.0,104650.0,0.19111323]
[1750382295589,6.04298925,104660.0,104640.0,0.36594688]
[1750382295818,5.1005246,104650.0,104640.0,0.37550263]
[1750382296235,5.10052442,104650.0,104640.0,0.38505865]
[1750382296499,5.1100798,104650.0,104640.0,0.38505865]
[1750382296932,5.1100798,104650.0,104640.0,0.22933865]
[1750382297154,5.34754805,104650.0,104640.0,0.21022697]
[1750382297376,5.35830371,104650.0,104640.0,0.36594697]
[1750382297610,5.16719048,104650.0,104640.0,0.3755029]
[1750382298070,5.15763482,104650.0,104640.0,0.3755029]
[1750382298736,5.15763482,104650.0,104640.0,0.3765029]
[1750382298960,5.13965926,104650.0,104640.0,0.3765029]
[1750382299146,5.13845926,104650.0,104640.0,0.3765029]
[1750382299351,5.34032806,104650.0,104640.0,0.2207829]
[1750382299563,5.1577599,104650.0,104640.0,0.3765029]
[1750382299978,5.1565599,104650.0,104640.0,0.3765029]
[1750382300675,5.12890433,104650.0,104640.0,0.3765029]
[1750382302608,5.12890424,104650.0,104640.0,0.3765029]
[1750382303067,5.11020424,104650.0,104640.0,0.3765029]
[1750382303261,4.719499,104650.0,104640.0,0.3949429]
[1750382303510,4.719499,104650.0,104640.0,0.4136429]
[1750382304402,4.719499,104650.0,104640.0,0.94720641]
[1750382305065,4.719499,104650.0,104640.0,0.58516677]
[1750382308277,4.719499,104650.0,104640.0,0.50892183]
[1750382314367,4.719499,104650.0,104640.0,0.87096147]
[1750382315465,4.719499,104650.0,104640.0,0.50892183]
[1750382321682,4.719499,104650.0,104640.0,0.3765029]
[1750382321939,4.719499,104650.0,104640.0,0.3954029]
[1750382322795,4.719499,104650.0,104640.0,0.4166329]
[1750382326917,4.719499,104650.0,104640.0,0.77859728]
[1750382329688,4.719499,104650.0,104640.0,0.4166329]
[1750382329904,4.719499,104650.0,104640.0,0.77859728]
[1750382334275,4.719499,104650.0,104640.0,0.87387621]
[1750382335831,4.719499,104650.0,104640.0,0.51068183]
[1750382336053,4.719499,104650.0,104640.0,0.87387621]
[1750382337149,4.719499,104650.0,104640.0,0.85264621]
[1750382340145,4.719499,104650.0,104640.0,0.85387621]
[1750382340366,4.719499,104650.0,104640.0,0.87237621]
[1750382344916,0.66658858,104660.0,104650.0,0.21022427]
[1750382345145,5.77217739,104660.0,104650.0,0.22933467]
[1750382345359,5.21911674,104660.0,104650.0,0.23888969]
[1750382346222,5.22011674,104660.0,104650.0,0.23888969]
[1750382346442,5.41121171,104660.0,104650.0,0.23888969]
[1750382347166,5.22211674,104660.0,104650.0,0.23888969]
[1750382348411,5.21256209,104660.0,104650.0,0.23888969]
[1750382348823,5.20300716,104660.0,104650.0,0.23888969]
[1750382349033,5.18470716,104660.0,104650.0,0.23888969]
[1750382351117,0.06402566,104660.0,104650.0,0.27768969]
[1750382351297,0.40307461,104660.0,104650.0,0.27886969]
[1750382353741,0.04111023,104660.0,104650.0,0.27886969]
[1750382356344,0.04111023,104660.0,104650.0,0.27768969]
[1750382356671,0.40307461,104660.0,104650.0,0.27768969]
[1750382357535,0.69903657,104680.0,104650.0,0.57197761]
[1750382357751,5.37918438,104680.0,104670.0,0.22929057]
[1750382357969,5.23319882,104680.0,104670.0,0.22929057]
[1750382358425,5.18344581,104680.0,104670.0,0.22929057]
[1750382358854,5.18644581,104680.0,104670.0,0.22929057]
[1750382359473,5.17389307,104680.0,104670.0,0.22929057]
[1750382359723,5.3870571,104680.0,104670.0,0.22929057]
[1750382359944,5.38705774,104680.0,104670.0,0.2101841]
[1750382360157,5.38405774,104680.0,104670.0,0.21973747]
[1750382360381,4.73860584,104670.0,104660.0,0.21020336]
[1750382360609,0.38224113,104670.0,104660.0,0.37543765]
[1750382360829,0.4110622,104670.0,104660.0,0.37543765]
[1750382361482,0.42061585,104670.0,104660.0,0.3849923]
[1750382361699,0.44001585,104670.0,104660.0,0.2293123]
[1750382361914,0.44001585,104670.0,104660.0,0.3849923]
[1750382362613,0.44956932,104670.0,104660.0,0.3849923]
[1750382363046,0.45912306,104670.0,104660.0,0.3849923]
[1750382365495,0.64064694,104670.0,104660.0,0.37543829]
[1750382365942,0.62124694,104670.0,104660.0,0.37543829]
[1750382366210,0.61169311,104670.0,104660.0,0.38499239]
[1750382366432,0.62124694,104670.0,104660.0,0.38499239]
[1750382366662,0.4206164,104670.0,104660.0,0.38499239]
[1750382366885,0.41106266,104670.0,104660.0,0.38499239]
[1750382368006,0.04909828,104670.0,104660.0,0.38499239]
[1750382368225,0.41106266,104670.0,104660.0,0.38499239]
[1750382368650,0.75106266,104670.0,104660.0,0.38499239]
[1750382371799,0.74989266,104670.0,104660.0,0.38499239]
[1750382372695,0.94096937,104670.0,104660.0,0.38499239]
[1750382372919,0.95052311,104670.0,104660.0,0.38499239]
[1750382373153,0.96007694,104670.0,104660.0,0.20064962]
[1750382373377,5.73973766,104670.0,104660.0,0.365844]
[1750382373804,5.72153766,104670.0,104660.0,0.37539829]
[1750382374039,5.70363766,104670.0,104660.0,0.38495249]
[1750382375389,5.70363766,104670.0,104660.0,0.37539829]
[1750382375632,5.70363766,104670.0,104660.0,0.38495249]
[1750382376511,5.70363766,104670.0,104660.0,0.37539829]
[1750382376713,5.6940841,104670.0,104660.0,0.37539829]
[1750382379593,5.6940841,104670.0,104660.0,0.38495249]
[1750382380100,5.6940841,104670.0,104660.0,0.39450659]
[1750382380734,5.49345356,104670.0,104660.0,0.39450659]
[1750382380942,5.49228319,104670.0,104660.0,0.39450659]
[1750382381164,5.49228264,104670.0,104660.0,0.39450659]
[1750382381613,5.49228264,104670.0,104660.0,0.41290659]
[1750382381823,5.50183629,104670.0,104660.0,0.39450659]
[1750382382066,5.49228255,104670.0,104660.0,0.41290659]
[1750382382283,5.49228255,104670.0,104660.0,0.43240659]
[1750382382493,5.48272927,104670.0,104660.0,0.43240659]
[1750382382707,5.48272927,104670.0,104660.0,0.43356659]
[1750382383119,5.47317617,104670.0,104660.0,0.43356659]
[1750382383336,5.11121179,104670.0,104660.0,0.79553097]
[1750382383547,5.08832007,104670.0,104660.0,0.79553097]
[1750382383754,5.08832007,104670.0,104660.0,0.43356659]
[1750382385131,5.45028445,104670.0,104660.0,0.43356659]
[1750382386095,5.45028445,104670.0,104660.0,0.43240659]
[1750382386303,5.45028445,104670.0,104660.0,0.43356659]
[1750382388307,0.36882107,104670.0,104660.0,0.43356659]
[1750382390276,0.36882107,104670.0,104660.0,0.79553097]
[1750382393911,0.36882107,104670.0,104660.0,0.43356659]
[1750382394166,0.73078545,104670.0,104660.0,0.43356659]
[1750382395556,0.73078545,104670.0,104660.0,0.27676659]
[1750382395796,0.73078545,104670.0,104660.0,0.43352659]
[1750382397798,0.36882107,104670.0,104660.0,0.43352659]
[1750382398011,0.73078545,104670.0,104660.0,0.43352659]
[1750382398251,0.74033855,104670.0,104660.0,0.43352659]
[1750382399530,0.7594452,104670.0,104660.0,0.41286659]
[1750382399737,0.7594452,104670.0,104660.0,0.39446659]
[1750382399946,0.76899885,104670.0,104660.0,0.39446659]
[1750382400574,0.76899885,104670.0,104660.0,0.41346659]
[1750382400786,0.76899885,104670.0,104660.0,0.41462659]
[1750382401004,0.76899876,104670.0,104660.0,0.43242659]
[1750382401871,0.77855241,104670.0,104660.0,0.43242659]
[1750382402309,0.7594452,104670.0,104660.0,0.43242659]
[1750382402738,0.76899876,104670.0,104660.0,0.43242659]
[1750382402947,0.77855241,104670.0,104660.0,0.41346659]
[1750382403624,0.96962976,104670.0,104660.0,0.38491248]
[1750382404069,5.48849831,104670.0,104660.0,0.38491248]
[1750382404282,5.47894466,104670.0,104660.0,0.38491248]
[1750382404532,5.51140511,104670.0,104660.0,0.38487248]
[1750382405570,5.50185146,104670.0,104660.0,0.38487248]
[1750382406228,5.4922979,104670.0,104660.0,0.38487248]
[1750382406450,5.4922979,104670.0,104660.0,0.40357248]
[1750382406888,5.50185146,104670.0,104660.0,0.40357248]
[1750382407102,5.51140511,104670.0,104660.0,0.40357248]
[1750382407318,5.50185146,104670.0,104660.0,0.40357248]
[1750382407543,5.13988699,104670.0,104660.0,0.40357248]
[1750382407766,5.51140502,104670.0,104660.0,0.40357248]
[1750382408459,5.50185137,104670.0,104660.0,0.40357248]
[1750382408690,5.51140502,104670.0,104660.0,0.40357248]
[1750382409987,5.51140502,104670.0,104660.0,0.24801248]
[1750382410209,5.70362219,104670.0,104660.0,0.37531838]